[Event "Titled Tuesday Blitz April 19 Early 2022"]
[White "Sukandar, Irine Kharisma"]
[Black "Cramling Bellon, Anna"]
[WhiteFideId "7101937"]
[BlackFideId "32009232"]
[WhiteElo "2293"]
[BlackElo "1905"]
[Result "1-0"]
[Round "08"]
[TimeControl "180+1"]
[Date "2022.04.19"]
[WhiteClock "0:00:04"]
[BlackClock "0:00:01"]

1. d4 {[%clk 0:03:00]}  Nf6 {[%clk 0:02:54]} 2. Nf3 {[%clk 0:02:57]}  e6 {[%clk 0:02:51]} 3. g3 {[%clk 0:02:57]}  d5 {[%clk 0:02:40]} 4. Bg2 {[%clk 0:02:56]}  c5 {[%clk 0:02:38]} 5. e3 {[%clk 0:02:50]}  Nc6 {[%clk 0:02:37]} 6. O-O {[%clk 0:02:50]}  Be7 {[%clk 0:02:32]} 7. b3 {[%clk 0:02:50]}  O-O {[%clk 0:02:27]} 8. Bb2 {[%clk 0:02:50]}  Qb6 {[%clk 0:02:20]} 9. Nbd2 {[%clk 0:02:44]}  c4 {[%clk 0:02:17]} 10. Rb1 {[%clk 0:02:41]}  cxb3 {[%clk 0:02:09]} 11. axb3 {[%clk 0:02:37]}  Bd7 {[%clk 0:02:08]} 12. Ne5 {[%clk 0:02:33]}  Rfc8 {[%clk 0:02:00]} 13. c4 {[%clk 0:02:24]}  Be8 {[%clk 0:01:48]} 14. h4 {[%clk 0:02:05]}  a5 {[%clk 0:01:31]} 15. Qe2 {[%clk 0:01:41]}  Nb4 {[%clk 0:01:28]} 16. g4 {[%clk 0:01:23]}  Nd7 {[%clk 0:01:25]} 17. Nxd7 {[%clk 0:01:15]}  Bxd7 {[%clk 0:01:26]} 18. g5 {[%clk 0:01:06]}  a4 {[%clk 0:01:14]} 19. bxa4 {[%clk 0:01:04]}  Rxa4 {[%clk 0:01:12]} 20. Bc3 {[%clk 0:01:05]}  Qd8 {[%clk 0:01:11]} 21. c5 {[%clk 0:00:56]}  Na2 {[%clk 0:00:46]} 22. Ba1 {[%clk 0:00:50]}  Bc6 {[%clk 0:00:38]} 23. Nf3 {[%clk 0:00:49]}  Qa5 {[%clk 0:00:33]} 24. Ne5 {[%clk 0:00:47]}  Rb4 {[%clk 0:00:20]} 25. Rxb4 {[%clk 0:00:44]}  Nxb4 {[%clk 0:00:20]} 26. Bc3 {[%clk 0:00:44]}  Bb5 {[%clk 0:00:20]} 27. Qd2 {[%clk 0:00:41]}  Bxf1 {[%clk 0:00:13]} 28. Bxb4 {[%clk 0:00:40]}  Qa1 {[%clk 0:00:09]} 29. Bxf1 {[%clk 0:00:40]}  Ra8 {[%clk 0:00:09]} 30. Kg2 {[%clk 0:00:40]}  Ra2 {[%clk 0:00:08]} 31. Qc3 {[%clk 0:00:36]}  Qd1 {[%clk 0:00:08]} 32. c6 {[%clk 0:00:18]}  Ra1 {[%clk 0:00:09]} 33. Qxa1 {[%clk 0:00:09]}  Qxa1 {[%clk 0:00:08]} 34. c7 {[%clk 0:00:07]}  Qc1 {[%clk 0:00:05]} 35. Bc5 {[%clk 0:00:05]}  Bxc5 {[%clk 0:00:01]} 36. c8=Q+ {[%clk 0:00:04]}  Bf8 {[%clk 0:00:01]} 37. Qxc1 {[%clk 0:00:04]} 1-0


[Site "https://www.chess.com"]

[Event "Titled Tuesday Blitz April 19 Early 2022"]
[White "Timofeev, Artyom"]
[Black "Tanenbaum, Zachary"]
[WhiteFideId "4140419"]
[BlackFideId "2060850"]
[WhiteElo "2594"]
[BlackElo "2168"]
[Result "1-0"]
[Round "08"]
[TimeControl "180+1"]
[Date "2022.04.19"]
[WhiteClock "0:00:15"]
[BlackClock "0:00:03"]

1. e4 {[%clk 0:03:00]}  e5 {[%clk 0:03:00]} 2. Nf3 {[%clk 0:03:00]}  Nc6 {[%clk 0:03:00]} 3. Nc3 {[%clk 0:03:00]}  Nf6 {[%clk 0:03:01]} 4. Be2 {[%clk 0:03:00]}  Bb4 {[%clk 0:02:59]} 5. O-O {[%clk 0:03:00]}  O-O {[%clk 0:02:59]} 6. Re1 {[%clk 0:02:59]}  d6 {[%clk 0:02:54]} 7. d3 {[%clk 0:02:56]}  Bxc3 {[%clk 0:02:48]} 8. bxc3 {[%clk 0:02:55]}  h6 {[%clk 0:02:45]} 9. Nd2 {[%clk 0:02:55]}  Be6 {[%clk 0:02:43]} 10. Nf1 {[%clk 0:02:55]}  d5 {[%clk 0:02:40]} 11. exd5 {[%clk 0:02:49]}  Nxd5 {[%clk 0:02:36]} 12. Bd2 {[%clk 0:02:47]}  Qf6 {[%clk 0:02:28]} 13. Ng3 {[%clk 0:02:46]}  Nf4 {[%clk 0:02:16]} 14. Bf3 {[%clk 0:02:46]}  Rad8 {[%clk 0:01:53]} 15. Rb1 {[%clk 0:02:23]}  Bc8 {[%clk 0:01:51]} 16. Nh5 {[%clk 0:02:01]}  Nxh5 {[%clk 0:01:51]} 17. Bxh5 {[%clk 0:02:01]}  b6 {[%clk 0:01:47]} 18. Bf3 {[%clk 0:01:59]}  Ne7 {[%clk 0:01:47]} 19. c4 {[%clk 0:01:56]}  Ng6 {[%clk 0:01:45]} 20. Qe2 {[%clk 0:01:55]}  Rfe8 {[%clk 0:01:34]} 21. g3 {[%clk 0:01:55]}  Bh3 {[%clk 0:01:24]} 22. Be4 {[%clk 0:01:49]}  Bf5 {[%clk 0:01:16]} 23. Bg2 {[%clk 0:01:47]}  Qe6 {[%clk 0:01:16]} 24. Bc3 {[%clk 0:01:39]}  Bh3 {[%clk 0:01:15]} 25. Bf3 {[%clk 0:01:33]}  Qd7 {[%clk 0:01:03]} 26. a3 {[%clk 0:01:25]}  Qf5 {[%clk 0:01:01]} 27. a4 {[%clk 0:01:22]}  Qg5 {[%clk 0:00:57]} 28. Qe3 {[%clk 0:01:19]}  Qf5 {[%clk 0:00:41]} 29. a5 {[%clk 0:01:17]}  Qe6 {[%clk 0:00:41]} 30. c5 {[%clk 0:01:11]}  bxa5 {[%clk 0:00:35]} 31. Bxa5 {[%clk 0:01:09]}  Rd7 {[%clk 0:00:28]} 32. c6 {[%clk 0:01:02]}  Rde7 {[%clk 0:00:28]} 33. Bb4 {[%clk 0:01:02]}  f5 {[%clk 0:00:26]} 34. Bxe7 {[%clk 0:01:01]}  Rxe7 {[%clk 0:00:26]} 35. Qc5 {[%clk 0:00:58]}  Kh7 {[%clk 0:00:20]} 36. Qd5 {[%clk 0:00:56]}  Qf6 {[%clk 0:00:20]} 37. Rb8 {[%clk 0:00:55]}  Re6 {[%clk 0:00:14]} 38. Qd8 {[%clk 0:00:51]}  Qf7 {[%clk 0:00:10]} 39. Bd5 {[%clk 0:00:46]}  f4 {[%clk 0:00:09]} 40. Be4 {[%clk 0:00:37]}  Bf5 {[%clk 0:00:08]} 41. Qd7 {[%clk 0:00:32]}  Qf6 {[%clk 0:00:07]} 42. Qd8 {[%clk 0:00:27]}  Qxd8 {[%clk 0:00:04]} 43. Rxd8 {[%clk 0:00:26]}  Bxe4 {[%clk 0:00:04]} 44. Rxe4 {[%clk 0:00:26]}  Rxc6 {[%clk 0:00:05]} 45. Rc4 {[%clk 0:00:27]}  Rb6 {[%clk 0:00:04]} 46. Kg2 {[%clk 0:00:27]}  Rb2 {[%clk 0:00:04]} 47. Rxc7 {[%clk 0:00:26]}  a5 {[%clk 0:00:04]} 48. Rdd7 {[%clk 0:00:25]}  Nf8 {[%clk 0:00:04]} 49. Rxg7+ {[%clk 0:00:25]}  Kh8 {[%clk 0:00:05]} 50. Rge7 {[%clk 0:00:23]}  Kg8 {[%clk 0:00:04]} 51. Rc8 {[%clk 0:00:23]}  Rb6 {[%clk 0:00:03]} 52. Rxe5 {[%clk 0:00:21]}  Rf6 {[%clk 0:00:03]} 53. Rxa5 {[%clk 0:00:20]}  fxg3 {[%clk 0:00:03]} 54. hxg3 {[%clk 0:00:20]}  Kg7 {[%clk 0:00:04]} 55. Ra7+ {[%clk 0:00:20]}  Kg6 {[%clk 0:00:04]} 56. Rac7 {[%clk 0:00:20]}  Ne6 {[%clk 0:00:04]} 57. Rc6 {[%clk 0:00:20]}  h5 {[%clk 0:00:05]} 58. d4 {[%clk 0:00:20]}  h4 {[%clk 0:00:05]} 59. d5 {[%clk 0:00:20]}  h3+ {[%clk 0:00:05]} 60. Kxh3 {[%clk 0:00:19]}  Rxf2 {[%clk 0:00:04]} 61. Rxe6+ {[%clk 0:00:19]}  Kg5 {[%clk 0:00:03]} 62. Rg8+ {[%clk 0:00:19]}  Kh5 {[%clk 0:00:03]} 63. Rh8+ {[%clk 0:00:19]}  Kg5 {[%clk 0:00:03]} 64. Rhe8 {[%clk 0:00:18]}  Rxc2 {[%clk 0:00:03]} 65. Re4 {[%clk 0:00:17]}  Kf5 {[%clk 0:00:03]} 66. Rf4+ {[%clk 0:00:17]}  Kg6 {[%clk 0:00:02]} 67. d6 {[%clk 0:00:16]}  Kh5 {[%clk 0:00:02]} 68. d7 {[%clk 0:00:14]}  Rc6 {[%clk 0:00:01]} 69. d8=Q {[%clk 0:00:14]}  Re6 {[%clk 0:00:02]} 70. Qh4+ {[%clk 0:00:14]}  Kg6 {[%clk 0:00:02]} 71. Rxe6+ {[%clk 0:00:14]}  Kg7 {[%clk 0:00:03]} 72. Qh6+ {[%clk 0:00:14]}  Kg8 {[%clk 0:00:03]} 73. Rf8# {[%clk 0:00:15]} 1-0


[Site "https://www.chess.com"]

[Event "Titled Tuesday Blitz April 19 Early 2022"]
[White "Vidonyak, Roman"]
[Black "Vokarev, Sergey"]
[WhiteFideId "14100622"]
[BlackFideId "4119711"]
[WhiteElo "2443"]
[BlackElo "2343"]
[Result "0-1"]
[Round "08"]
[TimeControl "180+1"]
[Date "2022.04.19"]
[WhiteClock "0:00:54"]
[BlackClock "0:01:31"]

1. d4 {[%clk 0:03:00]}  d5 {[%clk 0:02:56]} 2. c4 {[%clk 0:03:00]}  dxc4 {[%clk 0:02:52]} 3. e3 {[%clk 0:02:59]}  e5 {[%clk 0:02:52]} 4. Bxc4 {[%clk 0:02:59]}  exd4 {[%clk 0:02:52]} 5. exd4 {[%clk 0:03:00]}  Bd6 {[%clk 0:02:52]} 6. Nf3 {[%clk 0:03:00]}  Nf6 {[%clk 0:02:53]} 7. O-O {[%clk 0:03:00]}  O-O {[%clk 0:02:53]} 8. Nc3 {[%clk 0:03:01]}  Nc6 {[%clk 0:02:53]} 9. h3 {[%clk 0:03:01]}  h6 {[%clk 0:02:52]} 10. Re1 {[%clk 0:03:02]}  Bf5 {[%clk 0:02:50]} 11. a3 {[%clk 0:02:57]}  Qd7 {[%clk 0:02:49]} 12. Be3 {[%clk 0:02:38]}  Rfe8 {[%clk 0:02:46]} 13. Qd2 {[%clk 0:02:36]}  Rad8 {[%clk 0:02:44]} 14. Rad1 {[%clk 0:02:31]}  Ne4 {[%clk 0:02:42]} 15. Nxe4 {[%clk 0:02:29]}  Bxe4 {[%clk 0:02:42]} 16. Nh2 {[%clk 0:02:16]}  Ne7 {[%clk 0:02:32]} 17. Ng4 {[%clk 0:02:12]}  Qf5 {[%clk 0:02:18]} 18. Bxh6 {[%clk 0:02:05]}  Nd5 {[%clk 0:02:11]} 19. Bxd5 {[%clk 0:01:55]}  Bxd5 {[%clk 0:02:06]} 20. Bg5 {[%clk 0:01:53]}  Rc8 {[%clk 0:01:58]} 21. Nh2 {[%clk 0:01:34]}  Qg6 {[%clk 0:01:47]} 22. Ng4 {[%clk 0:01:05]}  f6 {[%clk 0:01:40]} 23. Bf4 {[%clk 0:01:05]}  f5 {[%clk 0:01:33]} 24. Ne5 {[%clk 0:00:54]}  Qxg2# {[%clk 0:01:31]} 0-1


[Site "https://www.chess.com"]

[Event "Titled Tuesday Blitz April 19 Early 2022"]
[White "Vlassov, Nikolai"]
[Black "Zor, Alber Kadir"]
[WhiteFideId "4103360"]
[BlackFideId "6353169"]
[WhiteElo "2407"]
[BlackElo "1966"]
[Result "1-0"]
[Round "08"]
[TimeControl "180+1"]
[Date "2022.04.19"]
[WhiteClock "0:01:05"]
[BlackClock "0:00:02"]

1. e4 {[%clk 0:03:00]}  c5 {[%clk 0:02:53]} 2. c3 {[%clk 0:03:01]}  Nf6 {[%clk 0:02:51]} 3. e5 {[%clk 0:03:01]}  Nd5 {[%clk 0:02:52]} 4. d4 {[%clk 0:03:02]}  cxd4 {[%clk 0:02:52]} 5. cxd4 {[%clk 0:03:03]}  d6 {[%clk 0:02:53]} 6. Bc4 {[%clk 0:03:02]}  dxe5 {[%clk 0:02:33]} 7. dxe5 {[%clk 0:03:02]}  Be6 {[%clk 0:02:33]} 8. Nc3 {[%clk 0:03:01]}  Nxc3 {[%clk 0:02:23]} 9. Qxd8+ {[%clk 0:03:00]}  Kxd8 {[%clk 0:02:24]} 10. Bxe6 {[%clk 0:03:01]}  fxe6 {[%clk 0:02:16]} 11. bxc3 {[%clk 0:03:01]}  Nc6 {[%clk 0:02:16]} 12. Nf3 {[%clk 0:03:00]}  g6 {[%clk 0:02:09]} 13. Bf4 {[%clk 0:02:57]}  Bg7 {[%clk 0:02:02]} 14. O-O-O+ {[%clk 0:02:56]}  Ke8 {[%clk 0:01:48]} 15. Rhe1 {[%clk 0:02:54]}  Rf8 {[%clk 0:01:34]} 16. Bg3 {[%clk 0:02:44]}  Rd8 {[%clk 0:01:30]} 17. Rxd8+ {[%clk 0:02:38]}  Nxd8 {[%clk 0:01:31]} 18. Kc2 {[%clk 0:02:28]}  Nc6 {[%clk 0:01:25]} 19. Ng5 {[%clk 0:02:23]}  Rf5 {[%clk 0:01:20]} 20. f4 {[%clk 0:02:16]}  Bxe5 {[%clk 0:01:15]} 21. Nxe6 {[%clk 0:02:14]}  Bf6 {[%clk 0:01:10]} 22. Rd1 {[%clk 0:02:06]}  Kf7 {[%clk 0:01:07]} 23. Nd8+ {[%clk 0:01:58]}  Nxd8 {[%clk 0:01:04]} 24. Rxd8 {[%clk 0:01:58]}  Rc5 {[%clk 0:00:58]} 25. Be1 {[%clk 0:01:57]}  Rc4 {[%clk 0:00:55]} 26. Bd2 {[%clk 0:01:51]}  b5 {[%clk 0:00:50]} 27. Rb8 {[%clk 0:01:48]}  a6 {[%clk 0:00:46]} 28. Rb6 {[%clk 0:01:44]}  Ra4 {[%clk 0:00:46]} 29. Kb3 {[%clk 0:01:45]}  h5 {[%clk 0:00:38]} 30. g3 {[%clk 0:01:44]}  h4 {[%clk 0:00:30]} 31. Be3 {[%clk 0:01:36]}  hxg3 {[%clk 0:00:26]} 32. hxg3 {[%clk 0:01:36]}  Re4 {[%clk 0:00:21]} 33. Bc5 {[%clk 0:01:35]}  Re2 {[%clk 0:00:19]} 34. Rxa6 {[%clk 0:01:32]}  Rg2 {[%clk 0:00:16]} 35. Rb6 {[%clk 0:01:29]}  Rxg3 {[%clk 0:00:16]} 36. Bb4 {[%clk 0:01:28]}  Rf3 {[%clk 0:00:14]} 37. Rxb5 {[%clk 0:01:28]}  Rxf4 {[%clk 0:00:14]} 38. a4 {[%clk 0:01:28]}  Rf1 {[%clk 0:00:08]} 39. a5 {[%clk 0:01:24]}  Ra1 {[%clk 0:00:08]} 40. Kb2 {[%clk 0:01:24]}  Ra4 {[%clk 0:00:07]} 41. Kb3 {[%clk 0:01:25]}  Ra1 {[%clk 0:00:07]} 42. Ba3 {[%clk 0:01:20]}  Bxc3 {[%clk 0:00:04]} 43. a6 {[%clk 0:01:20]}  Bd4 {[%clk 0:00:04]} 44. Rb7 {[%clk 0:01:16]}  Kf6 {[%clk 0:00:01]} 45. Bxe7+ {[%clk 0:01:15]}  Kf5 {[%clk 0:00:01]} 46. Ba3 {[%clk 0:01:11]}  Rb1+ {[%clk 0:00:01]} 47. Kc4 {[%clk 0:01:10]}  Rxb7 {[%clk 0:00:02]} 48. axb7 {[%clk 0:01:10]}  Be5 {[%clk 0:00:03]} 49. Kd5 {[%clk 0:01:10]}  Bb8 {[%clk 0:00:03]} 50. Bd6 {[%clk 0:01:06]}  Ba7 {[%clk 0:00:02]} 51. Kc6 {[%clk 0:01:07]}  g5 {[%clk 0:00:02]} 52. Kc7 {[%clk 0:01:06]}  g4 {[%clk 0:00:02]} 53. Bc5 {[%clk 0:01:07]}  Bxc5 {[%clk 0:00:02]} 54. b8=Q {[%clk 0:01:07]}  g3 {[%clk 0:00:02]} 55. Qb5 {[%clk 0:01:05]}  Kf4 {[%clk 0:00:01]} 56. Qxc5 {[%clk 0:01:05]}  Kf3 {[%clk 0:00:02]} 57. Qg1 {[%clk 0:01:05]} 1-0


[Site "https://www.chess.com"]

[Event "Titled Tuesday Blitz April 19 Early 2022"]
[White "Vokhidov, Shamsiddin"]
[Black "Ibarra Jerez, Jose Carlos"]
[WhiteFideId "14204223"]
[BlackFideId "2226332"]
[WhiteElo "2611"]
[BlackElo "2626"]
[Result "1-0"]
[Round "08"]
[TimeControl "180+1"]
[Date "2022.04.19"]
[WhiteClock "0:00:57"]
[BlackClock "0:00:05"]

1. e4 {[%clk 0:03:00]}  c5 {[%clk 0:02:58]} 2. Nf3 {[%clk 0:03:01]}  Nc6 {[%clk 0:02:58]} 3. Bb5 {[%clk 0:03:00]}  e5 {[%clk 0:02:57]} 4. c3 {[%clk 0:02:58]}  a6 {[%clk 0:02:52]} 5. Ba4 {[%clk 0:02:58]}  b5 {[%clk 0:02:50]} 6. Bc2 {[%clk 0:02:57]}  d5 {[%clk 0:02:50]} 7. d4 {[%clk 0:02:50]}  exd4 {[%clk 0:02:15]} 8. cxd4 {[%clk 0:02:51]}  Nf6 {[%clk 0:02:15]} 9. Nc3 {[%clk 0:02:36]}  dxe4 {[%clk 0:02:11]} 10. Nxe4 {[%clk 0:02:36]}  cxd4 {[%clk 0:01:48]} 11. Nxf6+ {[%clk 0:02:34]}  Qxf6 {[%clk 0:01:49]} 12. O-O {[%clk 0:02:29]}  Be7 {[%clk 0:01:45]} 13. Bg5 {[%clk 0:02:05]}  Qd6 {[%clk 0:01:45]} 14. Be4 {[%clk 0:01:58]}  Bxg5 {[%clk 0:01:33]} 15. Nxg5 {[%clk 0:01:57]}  h6 {[%clk 0:01:25]} 16. Bxc6+ {[%clk 0:01:27]}  Qxc6 {[%clk 0:01:21]} 17. Re1+ {[%clk 0:01:28]}  Be6 {[%clk 0:00:52]} 18. Nxe6 {[%clk 0:00:58]}  fxe6 {[%clk 0:00:51]} 19. Qh5+ {[%clk 0:00:58]}  Ke7 {[%clk 0:00:23]} 20. Qe5 {[%clk 0:00:58]}  Kf7 {[%clk 0:00:21]} 21. Rac1 {[%clk 0:00:57]}  Qd5 {[%clk 0:00:05]} 22. Rc7+ {[%clk 0:00:57]}  Ke8 {[%clk 0:00:05]} 23. Qxd5 {[%clk 0:00:57]} 1-0


[Site "https://www.chess.com"]

[Event "Titled Tuesday Blitz April 19 Early 2022"]
[White "Xu, Yi"]
[Black "Bluebaum, Matthias"]
[WhiteFideId "8605564"]
[BlackFideId "24651516"]
[WhiteElo "2471"]
[BlackElo "2550"]
[Result "1-0"]
[Round "08"]
[TimeControl "180+1"]
[Date "2022.04.19"]
[WhiteClock "0:00:16"]
[BlackClock "0:00:04"]

1. e4 {[%clk 0:03:00]}  c6 {[%clk 0:02:59]} 2. d4 {[%clk 0:03:00]}  d5 {[%clk 0:03:00]} 3. e5 {[%clk 0:03:01]}  Bf5 {[%clk 0:03:00]} 4. h4 {[%clk 0:03:01]}  h5 {[%clk 0:03:00]} 5. Bd3 {[%clk 0:03:01]}  Bxd3 {[%clk 0:03:01]} 6. Qxd3 {[%clk 0:03:02]}  Qa5+ {[%clk 0:03:02]} 7. Nd2 {[%clk 0:03:01]}  e6 {[%clk 0:03:02]} 8. Ne2 {[%clk 0:03:01]}  Qa6 {[%clk 0:02:59]} 9. c4 {[%clk 0:03:01]}  Ne7 {[%clk 0:02:57]} 10. b3 {[%clk 0:02:55]}  Nf5 {[%clk 0:02:55]} 11. Nf3 {[%clk 0:02:44]}  c5 {[%clk 0:02:48]} 12. O-O {[%clk 0:02:34]}  Nc6 {[%clk 0:02:47]} 13. Qb1 {[%clk 0:02:08]}  dxc4 {[%clk 0:02:25]} 14. d5 {[%clk 0:02:03]}  Nb4 {[%clk 0:02:15]} 15. dxe6 {[%clk 0:01:46]}  fxe6 {[%clk 0:02:12]} 16. Nf4 {[%clk 0:01:37]}  O-O-O {[%clk 0:01:26]} 17. a3 {[%clk 0:01:25]}  Nd3 {[%clk 0:01:26]} 18. bxc4 {[%clk 0:01:25]}  Nxf4 {[%clk 0:01:25]} 19. Bxf4 {[%clk 0:01:25]}  Be7 {[%clk 0:01:22]} 20. Bg5 {[%clk 0:01:23]}  Bxg5 {[%clk 0:01:09]} 21. Nxg5 {[%clk 0:01:23]}  Rd7 {[%clk 0:01:02]} 22. Rd1 {[%clk 0:01:07]}  Rhd8 {[%clk 0:00:58]} 23. Rxd7 {[%clk 0:01:04]}  Rxd7 {[%clk 0:00:59]} 24. Qc2 {[%clk 0:00:54]}  Nxh4 {[%clk 0:00:51]} 25. Qh7 {[%clk 0:00:47]}  Qxc4 {[%clk 0:00:34]} 26. Qxh5 {[%clk 0:00:34]}  Kc7 {[%clk 0:00:26]} 27. Qe8 {[%clk 0:00:28]}  Qd5 {[%clk 0:00:24]} 28. Nxe6+ {[%clk 0:00:25]}  Kb6 {[%clk 0:00:24]} 29. Nf4 {[%clk 0:00:20]}  Qd4 {[%clk 0:00:18]} 30. Rb1+ {[%clk 0:00:20]}  Ka5 {[%clk 0:00:19]} 31. e6 {[%clk 0:00:17]}  Qe4 {[%clk 0:00:09]} 32. exd7 {[%clk 0:00:17]}  Qxb1+ {[%clk 0:00:09]} 33. Kh2 {[%clk 0:00:17]}  Qf5 {[%clk 0:00:04]} 34. d8=Q+ {[%clk 0:00:17]}  b6 {[%clk 0:00:05]} 35. Qd2+ {[%clk 0:00:16]}  Ka6 {[%clk 0:00:05]} 36. Qee2+ {[%clk 0:00:16]}  Kb7 {[%clk 0:00:04]} 37. Qd5+ {[%clk 0:00:16]} 1-0


[Site "https://www.chess.com"]

[Event "Titled Tuesday Blitz April 19 Early 2022"]
[White "Yanayt, Eugene"]
[Black "Zhurikhin, Alexander"]
[WhiteFideId "2020165"]
[BlackFideId "4139569"]
[WhiteElo "2046"]
[BlackElo "2204"]
[Result "0-1"]
[Round "08"]
[TimeControl "180+1"]
[Date "2022.04.19"]
[WhiteClock "0:00:18"]
[BlackClock "0:01:22"]

1. d4 {[%clk 0:03:00]}  Nf6 {[%clk 0:02:59]} 2. c4 {[%clk 0:03:00]}  g6 {[%clk 0:02:58]} 3. Nc3 {[%clk 0:02:59]}  Bg7 {[%clk 0:02:58]} 4. e4 {[%clk 0:02:59]}  d6 {[%clk 0:02:59]} 5. Nf3 {[%clk 0:02:58]}  O-O {[%clk 0:02:59]} 6. Be2 {[%clk 0:02:58]}  e5 {[%clk 0:02:59]} 7. O-O {[%clk 0:02:57]}  exd4 {[%clk 0:03:00]} 8. Nxd4 {[%clk 0:02:56]}  Re8 {[%clk 0:03:01]} 9. Be3 {[%clk 0:02:54]}  Nxe4 {[%clk 0:03:00]} 10. Nd5 {[%clk 0:02:48]}  c6 {[%clk 0:02:56]} 11. Nf4 {[%clk 0:02:35]}  Nd7 {[%clk 0:02:52]} 12. Rc1 {[%clk 0:02:02]}  a5 {[%clk 0:02:47]} 13. a3 {[%clk 0:01:33]}  a4 {[%clk 0:02:44]} 14. Qc2 {[%clk 0:01:30]}  Ndc5 {[%clk 0:02:39]} 15. Rce1 {[%clk 0:01:26]}  Bd7 {[%clk 0:02:25]} 16. f3 {[%clk 0:01:12]}  Ng3 {[%clk 0:02:22]} 17. Bf2 {[%clk 0:01:04]}  Nxf1 {[%clk 0:02:21]} 18. Rxf1 {[%clk 0:01:04]}  Qf6 {[%clk 0:02:12]} 19. Nd3 {[%clk 0:00:58]}  Nxd3 {[%clk 0:02:07]} 20. Bxd3 {[%clk 0:00:58]}  c5 {[%clk 0:02:05]} 21. Ne2 {[%clk 0:00:39]}  Qxb2 {[%clk 0:02:04]} 22. Qd1 {[%clk 0:00:39]}  Qxa3 {[%clk 0:01:55]} 23. Be4 {[%clk 0:00:39]}  Bc6 {[%clk 0:01:47]} 24. Ng3 {[%clk 0:00:38]}  Bd4 {[%clk 0:01:44]} 25. Bxd4 {[%clk 0:00:35]}  cxd4 {[%clk 0:01:43]} 26. Kh1 {[%clk 0:00:31]}  Qc5 {[%clk 0:01:36]} 27. h4 {[%clk 0:00:26]}  Qe5 {[%clk 0:01:30]} 28. Qe1 {[%clk 0:00:21]}  Bxe4 {[%clk 0:01:22]} 29. Nxe4 {[%clk 0:00:18]}  f5 {[%clk 0:01:22]} 0-1


[Site "https://www.chess.com"]

[Event "Titled Tuesday Blitz April 19 Early 2022"]
[White "Zaksaite, Salomeja"]
[Black "Buchenau, Frank"]
[WhiteFideId "12801496"]
[BlackFideId "4604350"]
[WhiteElo "1953"]
[BlackElo "2193"]
[Result "0-1"]
[Round "08"]
[TimeControl "180+1"]
[Date "2022.04.19"]
[WhiteClock "0:00:01"]
[BlackClock "0:00:58"]

1. e4 {[%clk 0:02:53]}  e6 {[%clk 0:03:00]} 2. d4 {[%clk 0:02:49]}  d5 {[%clk 0:02:59]} 3. Nc3 {[%clk 0:02:48]}  Nf6 {[%clk 0:03:00]} 4. e5 {[%clk 0:02:48]}  Nfd7 {[%clk 0:03:00]} 5. f4 {[%clk 0:02:49]}  c5 {[%clk 0:03:00]} 6. Nf3 {[%clk 0:02:48]}  Nc6 {[%clk 0:03:00]} 7. Be3 {[%clk 0:02:48]}  a6 {[%clk 0:03:01]} 8. Qd2 {[%clk 0:02:47]}  b5 {[%clk 0:03:01]} 9. Be2 {[%clk 0:02:46]}  Qb6 {[%clk 0:02:55]} 10. Nd1 {[%clk 0:02:36]}  b4 {[%clk 0:02:54]} 11. Nf2 {[%clk 0:02:36]}  a5 {[%clk 0:02:53]} 12. O-O {[%clk 0:02:34]}  Ba6 {[%clk 0:02:52]} 13. Bxa6 {[%clk 0:02:31]}  Rxa6 {[%clk 0:02:50]} 14. c3 {[%clk 0:02:32]}  Be7 {[%clk 0:02:44]} 15. a3 {[%clk 0:02:27]}  bxa3 {[%clk 0:02:43]} 16. bxa3 {[%clk 0:02:26]}  O-O {[%clk 0:02:41]} 17. Rab1 {[%clk 0:02:27]}  Qc7 {[%clk 0:02:41]} 18. f5 {[%clk 0:02:17]}  exf5 {[%clk 0:02:36]} 19. Qd3 {[%clk 0:02:17]}  Rb6 {[%clk 0:02:34]} 20. Qxf5 {[%clk 0:02:15]}  cxd4 {[%clk 0:02:30]} 21. cxd4 {[%clk 0:02:13]}  Nd8 {[%clk 0:02:21]} 22. Rbc1 {[%clk 0:02:00]}  Qb7 {[%clk 0:02:19]} 23. Ng4 {[%clk 0:01:14]}  Ne6 {[%clk 0:02:15]} 24. h4 {[%clk 0:00:57]}  Bxa3 {[%clk 0:02:09]} 25. Rce1 {[%clk 0:00:40]}  Be7 {[%clk 0:02:03]} 26. h5 {[%clk 0:00:39]}  a4 {[%clk 0:01:58]} 27. h6 {[%clk 0:00:25]}  g6 {[%clk 0:01:57]} 28. Qc2 {[%clk 0:00:24]}  a3 {[%clk 0:01:55]} 29. Nf6+ {[%clk 0:00:23]}  Bxf6 {[%clk 0:01:52]} 30. exf6 {[%clk 0:00:24]}  Rb2 {[%clk 0:01:51]} 31. Qd1 {[%clk 0:00:16]}  a2 {[%clk 0:01:46]} 32. Qa1 {[%clk 0:00:14]}  Nxf6 {[%clk 0:01:39]} 33. Rf2 {[%clk 0:00:13]}  Rxf2 {[%clk 0:01:25]} 34. Bxf2 {[%clk 0:00:13]}  Qb3 {[%clk 0:01:16]} 35. Ne5 {[%clk 0:00:11]}  Rb8 {[%clk 0:01:09]} 36. Nc6 {[%clk 0:00:04]}  Rb6 {[%clk 0:01:09]} 37. Na5 {[%clk 0:00:03]}  Qb1 {[%clk 0:01:08]} 38. Qc3 {[%clk 0:00:02]}  Ne4 {[%clk 0:00:59]} 39. Qc8+ {[%clk 0:00:01]}  Nf8 {[%clk 0:00:58]} 0-1


[Site "https://www.chess.com"]

[Event "Titled Tuesday Blitz April 19 Early 2022"]
[White "Bach, Ngoc Thuy Duong"]
[Black "Kozak, Antoni"]
[WhiteFideId "12408956"]
[BlackFideId "21832030"]
[WhiteElo "1862"]
[BlackElo "2236"]
[Result "0-1"]
[Round "09"]
[TimeControl "180+1"]
[Date "2022.04.19"]
[WhiteClock "0:00:18"]
[BlackClock "0:00:37"]

1. d4 {[%clk 0:02:59]}  f5 {[%clk 0:02:56]} 2. c4 {[%clk 0:02:59]}  Nf6 {[%clk 0:02:55]} 3. Nc3 {[%clk 0:03:00]}  g6 {[%clk 0:02:55]} 4. Nf3 {[%clk 0:02:55]}  Bg7 {[%clk 0:02:53]} 5. g3 {[%clk 0:02:51]}  O-O {[%clk 0:02:52]} 6. Bg2 {[%clk 0:02:52]}  d6 {[%clk 0:02:52]} 7. O-O {[%clk 0:02:52]}  c6 {[%clk 0:02:51]} 8. Bf4 {[%clk 0:02:43]}  a5 {[%clk 0:02:36]} 9. Qc2 {[%clk 0:02:42]}  Na6 {[%clk 0:02:31]} 10. a3 {[%clk 0:02:41]}  Nc7 {[%clk 0:02:30]} 11. Rad1 {[%clk 0:02:40]}  Kh8 {[%clk 0:02:27]} 12. Rfe1 {[%clk 0:02:39]}  Be6 {[%clk 0:02:26]} 13. b3 {[%clk 0:02:36]}  Bg8 {[%clk 0:02:24]} 14. Qc1 {[%clk 0:02:28]}  b5 {[%clk 0:02:18]} 15. Nd2 {[%clk 0:02:21]}  Ra6 {[%clk 0:02:12]} 16. a4 {[%clk 0:02:05]}  bxc4 {[%clk 0:02:06]} 17. bxc4 {[%clk 0:02:03]}  Ne6 {[%clk 0:02:04]} 18. e3 {[%clk 0:01:58]}  g5 {[%clk 0:01:59]} 19. d5 {[%clk 0:01:58]}  gxf4 {[%clk 0:01:58]} 20. dxe6 {[%clk 0:01:58]}  fxg3 {[%clk 0:01:58]} 21. hxg3 {[%clk 0:01:55]}  Bxe6 {[%clk 0:01:59]} 22. Ne2 {[%clk 0:01:52]}  c5 {[%clk 0:01:52]} 23. Qc2 {[%clk 0:01:46]}  Rb6 {[%clk 0:01:51]} 24. Rb1 {[%clk 0:01:46]}  Rb4 {[%clk 0:01:50]} 25. Nc1 {[%clk 0:01:40]}  Qd7 {[%clk 0:01:46]} 26. Nd3 {[%clk 0:01:38]}  Rbb8 {[%clk 0:01:34]} 27. Rb5 {[%clk 0:01:35]}  Qc7 {[%clk 0:01:24]} 28. Reb1 {[%clk 0:01:34]}  Bd7 {[%clk 0:01:23]} 29. Rb7 {[%clk 0:01:32]}  Rxb7 {[%clk 0:01:20]} 30. Rxb7 {[%clk 0:01:33]}  Qc8 {[%clk 0:01:21]} 31. Qb3 {[%clk 0:01:30]}  Qe8 {[%clk 0:01:20]} 32. Nb2 {[%clk 0:01:28]}  Ng4 {[%clk 0:01:16]} 33. Qb6 {[%clk 0:01:12]}  Bxa4 {[%clk 0:01:09]} 34. Nxa4 {[%clk 0:00:59]}  Qxa4 {[%clk 0:01:09]} 35. Rxe7 {[%clk 0:00:59]}  Qc2 {[%clk 0:00:57]} 36. Qxd6 {[%clk 0:00:57]}  Qd1+ {[%clk 0:00:50]} 37. Bf1 {[%clk 0:00:51]}  a4 {[%clk 0:00:48]} 38. Qd3 {[%clk 0:00:28]}  Ne5 {[%clk 0:00:40]} 39. Qd5 {[%clk 0:00:21]}  Qxd2 {[%clk 0:00:36]} 40. Rxe5 {[%clk 0:00:18]}  Qxd5 {[%clk 0:00:36]} 41. Rxd5 {[%clk 0:00:19]}  a3 {[%clk 0:00:36]} 42. Rd2 {[%clk 0:00:18]}  Bb2 {[%clk 0:00:37]} 0-1


[Site "https://www.chess.com"]